fUSD/lending_fUSD_20240611
["ID","MTS","AMOUNT","RATE_DAILY","PERIOD"]
[329107307,1718109061763,-615.07,0.00024794,2]
[329107308,1718109061774,-151.0,0.00024794,7]
[329107309,1718109061784,-151.0,0.00024794,7]
[329107310,1718109061795,-500.0,0.00024794,2]
[329107311,1718109061805,-500.0,0.00024794,2]
[329107312,1718109061816,-500.0,0.00024794,2]
[329107313,1718109061826,-500.0,0.00024794,2]
[329107314,1718109061837,-500.0,0.00024794,2]
[329107315,1718109061847,-500.0,0.00024794,2]
[329107316,1718109061858,-500.0,0.00024794,2]
[329107317,1718109061869,-500.0,0.00024794,2]
[329107318,1718109061879,-637.44,0.00024794,2]
[329107319,1718109061890,-500.0,0.00024794,2]
[329107320,1718109061901,-500.0,0.00024794,2]
[329107321,1718109061911,-500.0,0.00024794,2]
[329107322,1718109061923,-777.75,0.00024794,2]
[329107323,1718109061934,-726.23,0.00024794,2]
[329107324,1718109061944,-500.0,0.00024794,2]
[329107325,1718109061955,-500.0,0.00024794,2]
[329107326,1718109061965,-500.0,0.00024794,2]
[329107327,1718109061975,-500.0,0.00024794,2]
[329107328,1718109061986,-298.28024,0.00024794,2]
[329107329,1718109061996,-500.0,0.00024794,2]
[329107330,1718109062007,-500.0,0.00024794,2]
[329107331,1718109062017,-998.68,0.00024794,2]
[329107332,1718109062032,-867.59,0.00024794,2]
[329107333,1718109062043,-500.0,0.00024794,2]
[329107334,1718109062054,-587.82,0.00024794,2]
[329107335,1718109062064,-500.0,0.00024794,2]
[329107336,1718109062076,-500.0,0.00024794,2]
[329107337,1718109062086,-500.0,0.00024794,2]
[329107338,1718109062097,-500.0,0.00024794,2]
[329107339,1718109062111,-211.28691734,0.00024794,2]
[329107340,1718109062122,-500.0,0.00024794,2]
[329107341,1718109062133,-500.0,0.00024794,2]
[329107342,1718109062143,-500.0,0.00024794,2]
[329107343,1718109062154,-500.0,0.00024794,2]
[329107344,1718109062165,-500.0,0.00024794,2]
[329107345,1718109062176,-572.72,0.00024794,2]
[329107346,1718109062187,-500.0,0.00024794,2]
[329107347,1718109062197,-677.56,0.00024794,2]
[329107348,1718109062207,-500.0,0.00024794,2]
[329107349,1718109062218,-551.35,0.00024794,2]
[329107350,1718109062229,-500.0,0.00024794,2]
[329107351,1718109062239,-500.0,0.00024794,2]
[329107352,1718109062250,-180.36985448,0.00024794,2]
[329107353,1718109062268,-500.0,0.00024794,2]
[329107354,1718109062278,-151.0,0.00024794,7]
[329107355,1718109062289,-500.0,0.00024794,2]
[329107356,1718109062300,-500.0,0.00024794,2]
[329107357,1718109062311,-151.0,0.00024794,7]
[329107358,1718109062322,-500.0,0.00024794,2]
[329107359,1718109062333,-151.0,0.00024794,7]
[329107360,1718109062344,-600.76534263,0.00024794,2]
[329107361,1718109062355,-500.0,0.00024794,2]
[329107362,1718109062365,-500.0,0.00024794,2]
[329107363,1718109062375,-500.0,0.00024794,2]
[329107364,1718109062386,-500.0,0.00024794,2]
[329107365,1718109062396,-500.0,0.00024794,2]
[329107366,1718109062407,-253.2256957,0.00024794,2]
[329107367,1718109062417,-500.0,0.00024794,2]
[329107368,1718109062428,-714.01,0.00024794,2]
[329107369,1718109062439,-766.6,0.00024794,2]
[329107370,1718109062450,-500.0,0.00024794,2]
[329107371,1718109062461,-504.92614203,0.00024794,2]
[329107372,1718109062473,-277.89419337,0.00024794,2]
[329107373,1718109062483,-500.0,0.00024794,2]
[329107374,1718109062495,-500.0,0.00024794,2]
[329107375,1718109062507,-500.0,0.00024794,2]
[329107376,1718109062518,-500.0,0.00024794,2]
[329107377,1718109062528,-500.0,0.00024794,2]
[329107378,1718109062539,-500.0,0.00024794,2]
[329107379,1718109062549,-500.0,0.00024794,2]
[329107380,1718109062560,-500.0,0.00024794,2]
[329107381,1718109062570,-500.0,0.00024794,2]
[329107382,1718109062581,-500.0,0.00024794,2]
[329107383,1718109062592,-500.0,0.00024794,2]
[329107384,1718109062602,-500.0,0.00024794,2]
[329107385,1718109062613,-500.0,0.00024794,2]
[329107386,1718109062623,-500.0,0.00024794,2]
[329107387,1718109062633,-500.0,0.00024794,2]
[329107388,1718109062643,-500.0,0.00024794,2]
[329107389,1718109062654,-599.05,0.00024794,2]
[329107390,1718109062664,-500.0,0.00024794,2]
[329107391,1718109062675,-500.0,0.00024794,2]
[329107392,1718109062685,-500.0,0.00024794,2]
[329107393,1718109062696,-500.0,0.00024794,2]
[329107394,1718109062707,-616.12,0.00024794,2]
[329107395,1718109062717,-500.0,0.00024794,2]
[329107396,1718109062727,-500.0,0.00024794,2]
[329107397,1718109062737,-500.0,0.00024794,2]
[329107398,1718109062748,-611.61,0.00024794,2]
[329107399,1718109062758,-569.2,0.00024794,2]
[329107400,1718109062768,-500.0,0.00024794,2]
[329107401,1718109062778,-500.0,0.00024794,2]
[329107402,1718109062788,-500.0,0.00024794,2]
[329107403,1718109062800,-500.0,0.00024794,2]
[329107404,1718109062811,-500.0,0.00024794,2]
[329107405,1718109062822,-546.69813867,0.00024794,2]
[329107406,1718109062832,-626.66,0.00024794,2]
[329107407,1718109062843,-500.0,0.00024794,2]
[329107408,1718109062854,-500.0,0.00024794,2]
[329107409,1718109062864,-301.55527084,0.00024794,2]
[329107410,1718109062875,-500.0,0.00024794,2]
[329107411,1718109062885,-500.0,0.00024794,2]
[329107412,1718109062896,-500.0,0.00024794,2]
[329107413,1718109062906,-500.0,0.00024794,2]
[329107414,1718109062916,-500.0,0.00024794,2]
[329107415,1718109062928,-500.0,0.00024794,2]
[329107416,1718109062940,-417.82328825,0.00024794,2]
[329107417,1718109062950,-720.82,0.00024794,2]
[329107418,1718109062961,-500.0,0.00024794,2]
[329107419,1718109062972,-500.0,0.00024794,2]
[329107420,1718109062982,-705.97,0.00024794,2]
[329107421,1718109063182,-514.43223461,0.00024794,2]
[329107422,1718109063193,-500.0,0.00024794,2]
[329107423,1718109063204,-500.0,0.00024794,2]
[329107424,1718109063215,-504.29960683,0.00024794,2]
[329107425,1718109063225,-500.0,0.00024794,2]
[329107426,1718109063236,-500.0,0.00024794,2]
[329107427,1718109063246,-500.0,0.00024794,2]
[329107428,1718109063259,-324.73424842,0.00024794,2]
[329107429,1718109063272,-500.0,0.00024794,2]
[329107430,1718109063283,-251.73076873,0.00024794,2]
[329107431,1718109063293,-608.67,0.00024794,2]
[329107432,1718109063304,-326.377757,0.00024794,7]
[329107433,1718109063315,-326.377757,0.00024794,7]
[329107434,1718109063325,-326.377757,0.00024794,7]
[329107435,1718109063337,-500.0,0.00024794,2]
[329107436,1718109063347,-500.0,0.00024794,2]
[329107437,1718109063357,-2557.8,0.00024794,2]
[329107438,1718109063367,-502.75,0.00024794,2]
[329107439,1718109063378,-555.13844924,0.00024794,2]
[329107440,1718109063388,-500.0,0.00024794,2]
[329107441,1718109063399,-151.0,0.00024794,7]
[329107442,1718109063408,-326.377757,0.00024794,7]
[329107443,1718109063418,-151.0,0.00024794,7]
[329107444,1718109063430,-326.377757,0.00024794,7]
[329107445,1718109063439,-500.0,0.00024794,2]
[329107446,1718109063450,-558.73936336,0.00024794,2]
[329107447,1718109063460,-326.377757,0.00024794,7]
[329107448,1718109063470,-500.0,0.00024794,2]
[329107449,1718109063482,-733.07,0.00024794,2]
[329107450,1718109063493,-500.0,0.00024794,2]
[329107451,1718109063503,-500.0,0.00024794,2]
[329107452,1718109063514,-1586.54,0.00024794,2]
[329107453,1718109063526,-500.0,0.00024794,2]
[329107454,1718109063537,-500.0,0.00024794,2]
[329107455,1718109063549,-500.0,0.00024794,2]
[329107456,1718109063560,-500.0,0.00024794,2]
[329107457,1718109063572,-545.20882327,0.00024794,2]
[329107458,1718109063583,-703.97,0.00024794,2]
[329107459,1718109063594,-506.27,0.00024794,2]
[329107460,1718109063605,-307.9378788,0.00024794,2]
[329107461,1718109063616,-500.0,0.00024794,2]
[329107462,1718109063628,-626.49,0.00024794,2]
[329107463,1718109063639,-542.72,0.00024794,2]
[329107464,1718109063650,-500.0,0.00024794,2]
[329107465,1718109063660,-500.0,0.00024794,2]
[329107466,1718109063670,-507.4495023,0.00024794,2]
[329107467,1718109063682,-500.0,0.00024794,2]
[329107468,1718109063693,-610.02621149,0.00024794,2]
[329107469,1718109063703,-500.0,0.00024794,2]
[329107470,1718109063714,-500.0,0.00024794,2]
[329107471,1718109063724,-500.0,0.00024794,2]
[329107472,1718109063734,-500.0,0.00024794,2]
[329107473,1718109063744,-609.8,0.00024794,2]
[329107474,1718109063754,-500.0,0.00024794,2]
[329107475,1718109063764,-1040.32,0.00024794,2]
[329107476,1718109063775,-846.44,0.00024794,2]
[329107477,1718109063785,-500.0,0.00024794,2]
[329107478,1718109063796,-500.0,0.00024794,2]
[329107479,1718109063806,-500.0,0.00024794,2]
[329107480,1718109063816,-500.0,0.00024794,2]
[329107481,1718109063827,-500.0,0.00024794,2]
[329107482,1718109063837,-500.0,0.00024794,2]
[329107483,1718109063847,-500.0,0.00024794,2]
[329107484,1718109063857,-500.0,0.00024794,2]
[329107485,1718109063867,-500.0,0.00024794,2]
[329107486,1718109063877,-500.0,0.00024794,2]
[329107487,1718109063888,-500.0,0.00024794,2]
[329107488,1718109063898,-500.0,0.00024794,2]
[329107489,1718109063909,-500.0,0.00024794,2]
[329107490,1718109063920,-1358.59,0.00024794,2]
[329107491,1718109063931,-614.57,0.00024794,2]
[329107492,1718109063941,-500.0,0.00024794,2]
[329107493,1718109063952,-500.0,0.00024794,2]
[329107494,1718109063962,-500.0,0.00024794,2]
[329107495,1718109063972,-500.0,0.00024794,2]
[329107496,1718109063982,-640.38458111,0.00024794,2]
[329107497,1718109063993,-510.63246283,0.00024794,2]
[329107498,1718109064004,-500.0,0.00024794,2]
[329107499,1718109064014,-912.53,0.00024794,2]
[329107500,1718109064027,-500.0,0.00024794,2]
[329107501,1718109064038,-670.43,0.00024794,2]
[329107502,1718109064048,-500.0,0.00024794,2]
[329107503,1718109064059,-707.93,0.00024794,2]
[329107504,1718109064070,-500.0,0.00024794,2]
[329107505,1718109064080,-500.0,0.00024794,2]
[329107506,1718109064090,-500.0,0.00024794,2]
[329107507,1718109064101,-805.74,0.00024794,2]
[329107508,1718109064114,-500.0,0.00024794,2]
[329107509,1718109064125,-1201.34,0.00024794,2]
[329107510,1718109064136,-760.1,0.00024794,2]
[329107511,1718109064146,-500.0,0.00024794,2]
[329107512,1718109064156,-500.0,0.00024794,2]
[329107513,1718109064167,-500.0,0.00024794,2]
[329107514,1718109064180,-742.45,0.00024794,2]
[329107515,1718109064190,-500.0,0.00024794,2]
[329107516,1718109064203,-500.0,0.00024794,2]
[329107517,1718109064213,-500.0,0.00024794,2]
[329107518,1718109064224,-500.0,0.00024794,2]
[329107519,1718109064234,-306.298305,0.00024794,7]
[329107520,1718109064245,-500.0,0.00024794,2]
[329107521,1718109064259,-306.298305,0.00024794,7]
[329107522,1718109064271,-874.7,0.00024794,2]
[329107523,1718109064281,-500.0,0.00024794,2]
[329107524,1718109064291,-500.0,0.00024794,2]
[329107525,1718109064301,-306.298305,0.00024794,7]
[329107526,1718109064311,-500.0,0.00024794,2]
[329107527,1718109064322,-306.298305,0.00024794,7]
[329107528,1718109064332,-500.0,0.00024794,2]
[329107529,1718109064342,-500.0,0.00024794,2]
[329107530,1718109064352,-480.0,0.00024794,2]
[329107531,1718109064364,-500.0,0.00024794,2]
[329107532,1718109064374,-500.0,0.00024794,2]
[329107533,1718109064384,-993.69,0.00024794,2]
[329107534,1718109064395,-500.53,0.00024794,2]
[329107535,1718109064405,-549.97915544,0.00024794,2]
[329107536,1718109064416,-500.0,0.00024794,2]
[329107537,1718109064429,-956.95,0.00024794,2]
[329107538,1718109064440,-547.10741263,0.00024794,2]
[329107539,1718109064449,-500.0,0.00024794,2]
[329107540,1718109064460,-500.0,0.00024794,2]
[329107541,1718109064470,-500.0,0.00024794,2]
[329107542,1718109064481,-1051.55811319,0.00024794,2]
[329107543,1718109064491,-500.0,0.00024794,2]
[329107544,1718109064502,-500.0,0.00024794,2]
[329107545,1718109064514,-151.0,0.00024794,7]
[329107546,1718109064524,-500.0,0.00024794,2]
[329107547,1718109064534,-151.0,0.00024794,7]
[329107548,1718109064545,-500.0,0.00024794,2]
[329107549,1718109064556,-500.0,0.00024794,2]
[329107550,1718109064566,-500.0,0.00024794,2]
[329107551,1718109064576,-822.52,0.00024794,2]
[329107552,1718109064587,-151.0,0.00024794,7]
[329107553,1718109064597,-551.79,0.00024794,2]
[329107554,1718109064607,-151.0,0.00024794,7]
[329107555,1718109064618,-522.69,0.00024794,2]
[329107556,1718109064629,-500.0,0.00024794,2]
[329107557,1718109064639,-511.4946649,0.00024794,2]
[329107558,1718109064650,-500.0,0.00024794,2]
[329107559,1718109064660,-500.0,0.00024794,2]
[329107560,1718109064670,-500.0,0.00024794,2]
[329107561,1718109064684,-585.86,0.00024794,2]
[329107562,1718109064693,-500.0,0.00024794,2]
[329107563,1718109064703,-500.0,0.00024794,2]
[329107564,1718109064713,-500.0,0.00024794,2]
[329107565,1718109064723,-500.0,0.00024794,2]
[329107566,1718109064733,-500.0,0.00024794,2]
[329107567,1718109064743,-500.0,0.00024794,2]
[329107568,1718109064753,-500.0,0.00024794,2]
[329107569,1718109064764,-1940.0,0.00024794,2]
[329107570,1718109064774,-802.34,0.00024794,2]
[329107571,1718109064784,-500.0,0.00024794,2]
[329107572,1718109064794,-151.0,0.00024794,7]
[329107573,1718109064804,-500.0,0.00024794,2]
[329107574,1718109064814,-500.0,0.00024794,2]
[329107575,1718109064824,-589.67,0.00024794,2]
[329107576,1718109064836,-500.0,0.00024794,2]
[329107577,1718109064847,-643.83,0.00024794,2]
[329107578,1718109064857,-500.0,0.00024794,2]
[329107579,1718109064867,-500.0,0.00024794,2]
[329107580,1718109064877,-2004.27,0.00024794,2]
[329107581,1718109064888,-500.0,0.00024794,2]
[329107582,1718109064898,-920.51,0.00024794,2]
[329107583,1718109064908,-500.0,0.00024794,2]
[329107584,1718109064919,-151.0,0.00024794,7]
[329107585,1718109064933,-151.0,0.00024794,7]
[329107586,1718109064944,-500.0,0.00024794,2]
[329107587,1718109064955,-754.42,0.00024794,2]
[329107588,1718109064968,-532.87087184,0.00024794,2]
[329107589,1718109064979,-500.0,0.00024794,2]
[329107590,1718109064989,-504.9468951,0.00024794,2]
[329107591,1718109065001,-1243.22,0.00024794,2]
[329107592,1718109065012,-813.43,0.00024794,2]
[329107593,1718109065026,-521.84540453,0.00024794,2]
[329107594,1718109065036,-513.56208747,0.00024794,2]
[329107595,1718109065047,-529.04,0.00024794,2]
[329107596,1718109065057,-500.0,0.00024794,2]
[329107597,1718109065068,-500.0,0.00024794,2]
[329107598,1718109065079,-500.0,0.00024794,2]
[329107599,1718109065090,-551.17087301,0.00024794,2]
[329107600,1718109065100,-948.02,0.00024794,2]
[329107601,1718109065112,-500.0,0.00024794,2]
[329107602,1718109065122,-500.0,0.00024794,2]
[329107603,1718109065132,-502.06,0.00024794,2]
[329107604,1718109065142,-500.0,0.00024794,2]
[329107605,1718109065152,-685.68,0.00024794,2]
[329107606,1718109065163,-500.0,0.00024794,2]
[329107607,1718109065173,-500.0,0.00024794,2]
[329107608,1718109065184,-500.0,0.00024794,2]
[329107609,1718109065196,-500.0,0.00024794,2]
[329107610,1718109065206,-594.77210598,0.00024794,2]
[329107611,1718109065217,-1288.31,0.00024794,2]
[329107612,1718109065227,-500.0,0.00024794,2]
[329107613,1718109065238,-500.0,0.00024794,2]
[329107614,1718109065248,-500.0,0.00024794,2]
[329107615,1718109065258,-500.0,0.00024794,2]
[329107616,1718109065273,-500.0,0.00024794,2]
[329107617,1718109065283,-500.0,0.00024794,2]
[329107618,1718109065292,-500.0,0.00024794,2]
[329107619,1718109065302,-500.0,0.00024794,2]
[329107620,1718109065312,-500.0,0.00024794,2]
[329107621,1718109065323,-500.0,0.00024794,2]
[329107622,1718109065333,-500.0,0.00024794,2]
[329107623,1718109065343,-175.312221,0.00024794,7]
[329107624,1718109065353,-175.312221,0.00024794,7]
[329107625,1718109065363,-537.89,0.00024794,2]
[329107626,1718109065374,-2669.87,0.00024794,2]
[329107627,1718109065383,-500.0,0.00024794,2]
[329107628,1718109065394,-500.0,0.00024794,2]
[329107629,1718109065404,-512.61683299,0.00024794,2]
[329107630,1718109065414,-584.25,0.00024794,2]
[329107631,1718109065424,-175.312221,0.00024794,7]
[329107632,1718109065436,-500.0,0.00024794,2]
[329107633,1718109065446,-175.312221,0.00024794,7]
[329107634,1718109065456,-500.0,0.00024794,2]
[329107635,1718109065465,-500.0,0.00024794,2]
[329107636,1718109065475,-500.0,0.00024794,2]
[329107637,1718109065486,-500.0,0.00024794,2]
[329107638,1718109065496,-500.0,0.00024794,2]
[329107639,1718109065505,-160.072207,0.00024794,7]
[329107640,1718109065515,-193.115357,0.00024794,7]
[329107641,1718109065525,-1504.2,0.00024794,2]
[329107642,1718109065535,-381.04650593,0.00024794,2]
[329107643,1718109065545,-837.33,0.00024794,2]
[329107644,1718109065555,-500.0,0.00024794,2]
[329107645,1718109065564,-206.53387726,0.00024794,2]
[329107646,1718109065574,-500.0,0.00024794,2]
[329107647,1718109065584,-500.0,0.00024794,2]
[329107648,1718109065594,-500.0,0.00024794,2]
[329107649,1718109065605,-500.0,0.00024794,2]
[329107650,1718109065615,-151.0,0.00024794,7]
[329107651,1718109065626,-151.0,0.00024794,7]
[329107652,1718109065636,-500.0,0.00024794,2]
[329107653,1718109065646,-500.0,0.00024794,2]
[329107654,1718109065656,-528.73,0.00024794,2]
[329107655,1718109065666,-992.5,0.00024794,2]
[329107656,1718109065678,-1166.75,0.00024794,2]
[329107657,1718109065688,-500.0,0.00024794,2]
[329107658,1718109065698,-504.76978809,0.00024794,2]
[329107659,1718109065708,-500.0,0.00024794,2]
[329107660,1718109065719,-521.73,0.00024794,2]
[329107661,1718109065731,-151.0,0.00024794,7]
[329107662,1718109065741,-151.0,0.00024794,7]
[329107663,1718109065751,-500.0,0.00024794,2]
[329107664,1718109065762,-151.0,0.00024794,7]
[329107665,1718109065772,-151.0,0.00024794,7]
[329107666,1718109065782,-151.0,0.00024794,7]
[329107667,1718109065792,-500.0,0.00024794,2]
[329107668,1718109065801,-270.362217,0.00024794,7]
[329107669,1718109065811,-500.0,0.00024794,2]
[329107670,1718109065821,-500.0,0.00024794,2]
[329107671,1718109065831,-500.0,0.00024794,2]
[329107672,1718109065841,-500.0,0.00024794,2]
[329107673,1718109065851,-500.0,0.00024794,2]
[329107674,1718109065861,-500.0,0.00024794,2]
[329107675,1718109065871,-500.0,0.00024794,2]
[329107676,1718109065881,-500.0,0.00024794,2]
[329107677,1718109065891,-500.0,0.00024794,2]
[329107678,1718109065901,-1856.03,0.00024794,2]
[329107679,1718109065910,-500.0,0.00024794,2]
[329107680,1718109065920,-500.0,0.00024794,2]
[329107681,1718109065931,-622.18,0.00024794,2]
[329107682,1718109065940,-664.96,0.00024794,2]
[329107683,1718109065949,-500.0,0.00024794,2]
[329107684,1718109065958,-500.0,0.00024794,2]
[329107685,1718109065969,-1082.88,0.00024794,2]
[329107686,1718109065979,-525.03465616,0.00024794,2]
[329107687,1718109065988,-500.0,0.00024794,2]
[329107688,1718109065998,-500.0,0.00024794,2]
[329107689,1718109066008,-1266.52,0.00024794,2]
[329107690,1718109066018,-500.0,0.00024794,2]
[329107691,1718109066031,-151.0,0.00024794,7]
[329107692,1718109066041,-500.0,0.00024794,2]
[329107693,1718109066052,-151.0,0.00024794,7]
[329107694,1718109066063,-757.35,0.00024794,2]
[329107695,1718109066072,-500.0,0.00024794,2]
[329107696,1718109066082,-169.061712,0.00024794,7]
[329107697,1718109066091,-500.0,0.00024794,2]
[329107698,1718109066101,-169.061712,0.00024794,7]
[329107699,1718109066116,-500.0,0.00024794,2]
[329107700,1718109066127,-749.33,0.00024794,2]
[329107701,1718109066138,-936.35,0.00024794,2]
[329107702,1718109066148,-169.061712,0.00024794,7]
[329107703,1718109066158,-169.061712,0.00024794,7]
[329107704,1718109066169,-500.0,0.00024794,2]
[329107705,1718109066181,-500.0,0.00024794,2]
[329107706,1718109066191,-151.0,0.00024794,7]
[329107707,1718109066201,-151.0,0.00024794,7]
[329107708,1718109066211,-624.94,0.00024794,2]
[329107709,1718109066222,-500.0,0.00024794,2]
[329107710,1718109066232,-500.0,0.00024794,2]
[329107711,1718109066242,-303.41005658,0.00024794,2]
[329107712,1718109066252,-500.0,0.00024794,2]
[329107713,1718109066268,-2377.7,0.00024794,2]
[329107714,1718109066279,-500.0,0.00024794,2]
[329107715,1718109066289,-195.587421,0.00024794,7]
[329107716,1718109066299,-195.587421,0.00024794,7]
[329107717,1718109066309,-500.0,0.00024794,2]
[329107718,1718109066319,-500.0,0.00024794,2]
[329107719,1718109066329,-531.1983478,0.00024794,2]
[329107720,1718109066339,-151.0,0.00024794,7]
[329107721,1718109066349,-586.96,0.00024794,2]
[329107722,1718109066359,-195.587421,0.00024794,7]
[329107723,1718109066369,-151.0,0.00024794,7]
[329107724,1718109066379,-500.0,0.00024794,2]
[329107725,1718109066389,-500.0,0.00024794,2]
[329107726,1718109066399,-500.0,0.00024794,2]
[329107727,1718109066409,-500.0,0.00024794,2]
[329107728,1718109066419,-500.0,0.00024794,2]
[329107729,1718109066430,-195.587421,0.00024794,7]
[329107730,1718109066439,-280.602831,0.00024794,7]
[329107731,1718109066448,-280.602831,0.00024794,7]
[329107732,1718109066458,-500.0,0.00024794,2]
[329107733,1718109066467,-588.0,0.00024794,2]
[329107734,1718109066477,-1235.22,0.00024794,2]
[329107735,1718109066486,-280.602831,0.00024794,7]
[329107736,1718109066496,-500.0,0.00024794,2]
[329107737,1718109066507,-280.602831,0.00024794,7]
[329107738,1718109066517,-500.0,0.00024794,2]
[329107739,1718109066526,-513.71,0.00024794,2]
[329107740,1718109066536,-151.0,0.00024794,7]
[329107741,1718109066546,-151.0,0.00024794,7]
[329107742,1718109066556,-500.0,0.00024794,2]
[329107743,1718109066566,-500.0,0.00024794,2]
[329107744,1718109066576,-887.62,0.00024794,2]
[329107745,1718109066585,-500.0,0.00024794,2]
[329107746,1718109066595,-587.62,0.00024794,2]
[329107747,1718109066605,-151.0,0.00024794,7]
[329107748,1718109066615,-151.0,0.00024794,7]
[329107749,1718109066624,-500.0,0.00024794,2]
[329107750,1718109066634,-645.96,0.00024794,2]
[329107751,1718109066644,-500.0,0.00024794,2]
[329107752,1718109066654,-500.0,0.00024794,2]
[329107753,1718109066663,-500.0,0.00024794,2]
[329107754,1718109066674,-500.0,0.00024794,2]
[329107755,1718109066684,-500.0,0.00024794,2]
[329107756,1718109066694,-500.0,0.00024794,2]
[329107757,1718109066705,-2188.6,0.00024794,2]
[329107758,1718109066715,-779.55,0.00024794,2]
[329107759,1718109066725,-500.0,0.00024794,2]
[329107760,1718109066736,-500.0,0.00024794,2]
[329107761,1718109066747,-500.0,0.00024794,2]
[329107762,1718109066757,-2304.87,0.00024794,2]
[329107763,1718109066768,-500.0,0.00024794,2]
[329107764,1718109066778,-500.0,0.00024794,2]
[329107765,1718109066787,-529.62824665,0.00024794,2]
[329107766,1718109066797,-500.0,0.00024794,2]
[329107767,1718109066807,-500.0,0.00024794,2]
[329107768,1718109066817,-500.0,0.00024794,2]
[329107769,1718109067009,-500.0,0.00024794,2]
[329107770,1718109067021,-500.0,0.00024794,2]
[329107771,1718109067034,-1816.58,0.00024794,2]
[329107772,1718109067045,-500.0,0.00024794,2]
[329107773,1718109067055,-500.0,0.00024794,2]
[329107774,1718109067065,-500.0,0.00024794,2]
[329107775,1718109067077,-500.0,0.00024794,2]
[329107776,1718109067087,-500.0,0.00024794,2]
[329107777,1718109067097,-934.61,0.00024794,2]
[329107778,1718109067107,-500.0,0.00024794,2]
[329107779,1718109067117,-500.0,0.00024794,2]
[329107780,1718109067127,-500.0,0.00024794,2]
[329107781,1718109067138,-500.0,0.00024794,2]
[329107782,1718109067148,-500.0,0.00024794,2]
[329107783,1718109067158,-1168.35,0.00024794,2]
[329107784,1718109067169,-151.0,0.00024794,7]
[329107785,1718109067179,-151.0,0.00024794,7]
[329107786,1718109067188,-151.0,0.00024794,7]
[329107787,1718109067199,-500.0,0.00024794,2]
[329107788,1718109067209,-151.0,0.00024794,7]
[329107789,1718109067219,-500.0,0.00024794,2]
[329107790,1718109067229,-500.0,0.00024794,2]
[329107791,1718109067239,-500.0,0.00024794,2]
[329107792,1718109067249,-518.7105444,0.00024794,2]
[329107793,1718109067262,-500.0,0.00024794,2]
[329107794,1718109067273,-500.0,0.00024794,2]
[329107795,1718109067283,-553.55,0.00024794,2]
[329107796,1718109067293,-937.71,0.00024794,2]
[329107797,1718109067302,-1359.45,0.00024794,2]
[329107798,1718109067312,-151.0,0.00024794,7]
[329107799,1718109067323,-151.0,0.00024794,7]
[329107800,1718109067332,-500.0,0.00024794,2]
[329107801,1718109067341,-500.0,0.00024794,2]
[329107802,1718109067351,-151.0,0.00024794,7]
[329107803,1718109067360,-522.31,0.00024794,2]
[329107804,1718109067370,-151.0,0.00024794,7]
[329107805,1718109067380,-584.41,0.00024794,2]
[329107806,1718109067390,-151.0,0.00024794,7]